Cogmind - Beta 17.1 @@@ ROGUE MODE // 2026.09.19 @ 22:38:27 Player: Ammie Result: Destroyed by P-60 Hacker with Shock Rifle Performance ------------- Evolutions (4) 2000 Regions Visited (10) 2000 Robots Destroyed (173) 865 Value Destroyed (5428) 5428 Prototype IDs (41) 820 Alien Tech Used (0) 0 Bonus (333) 333 TOTAL SCORE: 11446 Bonus ------- High Alert Combat Kills 56 Aligned with FarCom 300 Friendly Fire -23 Cogmind --------- Core Integrity 0/850 Matter 276/300 Energy 100/100 System Corruption 5% Temperature Cool (0) Movement Core (50) Location -6/Factory Parts ------- > --- POWER (1) -------- (None) > --- PROPULSION (5) --- (None) > --- UTILITY (7) ------ System Shield > --- WEAPON (2) ------- (None) > --- INVENTORY (5) ---- Micro Nuclear Core Trap Scanner Improved Signal Interpreter System Shield System Shield Peak State ------------ > --- POWER ------------ Micro Nuclear Core > --- PROPULSION ------- Cesium-ion Thruster Xenon Bombardment Thruster Improved Cesium-ion Thruster Improved Cesium-ion Thruster Improved Cesium-ion Thruster > --- UTILITY ---------- Medium Storage Unit Trap Scanner Advanced ECM Suite Hacking Suite Hacking Suite System Shield System Shield > --- WEAPON ----------- Coil Gun Chainsword > --- INVENTORY -------- Micro Nuclear Core Improved Signal Interpreter Jamming Amplifier Cloaking Device Hacking Suite Hacking Suite System Shield System Shield Shock Rifle Proton Missile Launcher [Rating: 58] Favorites ----------- Power Heavy Ion Engine Engine Heavy Ion Engine Power Core Micro Nuclear Core Propulsion Light Treads Treads Light Treads Flight Unit Improved Cesium-ion Thruster Utility High-capacity Storage Unit Device Heat Sink Storage High-capacity Storage Unit Processor Advanced Melee Analysis Suite Hackware Hacking Suite Protection Improved Propulsion Shielding Weapon Heavy EM Shotgun Energy Gun Heavy EM Shotgun Energy Cannon Ion Cannon Ballistic Gun Light Assault Rifle Ballistic Cannon Gauss Cannon Launcher Proton Missile Launcher Slashing Weapon Chainsword Special Melee Weapon Datajack Build | -11 -10 -9 -9 -9 -8 -8 -7 -7 -7 -6 ------- Run | Yrd Mat Mat Min Exi Min Mat Fac Low Low Fac Slots Evolved 8 | . . 2 . . . 2 2 . . 2 Power . | . . . . . . . . . . . Propulsion 3 | . . 1 . . . 1 . . . 1 Utility 5 | . . 1 . . . 1 2 . . 1 Weapon . | . . . . . . . . . . . Parts Attached 116 | 6 9 35 1 1 3 23 21 1 . 16 Power 17 | 1 2 3 . . . 3 4 . . 4 Engine 10 | 1 2 3 . . . 2 1 . . 1 Core 7 | . . . . . . 1 3 . . 3 Reactor . | . . . . . . . . . . . Propulsion 30 | 2 . 17 . . . 5 5 . . 1 Treads 22 | 2 . 16 . . . 4 . . . . Leg . | . . . . . . . . . . . Wheel . | . . . . . . . . . . . Hover . | . . . . . . . . . . . Flight 8 | . . 1 . . . 1 5 . . 1 Utility 35 | 1 3 5 1 1 2 7 8 . . 7 Device 19 | . . 5 1 . 2 5 2 . . 4 Storage 7 | 1 3 . . 1 . 1 1 . . . Processor 1 | . . . . . . . . . . 1 Hackware 7 | . . . . . . 1 4 . . 2 Protection 1 | . . . . . . . 1 . . . Artifact . | . . . . . . . . . . . Weapon 34 | 2 4 10 . . 1 8 4 1 . 4 Energy Gun 13 | 1 . 3 . . . 7 1 . . 1 Energy Cannon 10 | . . 7 . . 1 1 1 . . . Ballistic Gun 5 | 1 3 . . . . . . . . 1 Ballistic Cannon 1 | . . . . . . . . . . 1 Launcher 3 | . 1 . . . . . 1 . . 1 Special Weapon . | . . . . . . . . . . . Impact Weapon . | . . . . . . . . . . . Slashing Weapon 1 | . . . . . . . 1 . . . Piercing Weapon . | . . . . . . . . . . . Special Melee Weapon 1 | . . . . . . . . 1 . . Unidentified Prototypes 10 | . . 4 . . . 5 . . . 1 Parts Lost 49 | . 1 3 . . 1 8 16 . . 20 Power 5 | . . . . . . 1 3 . . 1 Propulsion 15 | . . 2 . . . 3 5 . . 5 Utility 18 | . . 1 . . 1 3 4 . . 9 Weapon 11 | . 1 . . . . 1 4 . . 5 Highest Loss Streak 9 | . 1 1 . . 1 4 6 . . 9 To Critical Strikes . | . . . . . . . . . . . Average Backups 14 | 1 7 18 20 20 19 19 9 6 6 7 Power 1 | . 2 2 2 2 2 1 . 1 1 1 Propulsion 3 | . . 4 5 5 5 5 1 . . . Utility 6 | . 3 6 8 8 8 8 6 4 4 5 Weapon 3 | . 1 4 5 5 4 3 . 1 1 . Tool/Special . | . . . . . . . . . . . Unused Backups 22 | . . 2 1 . 1 8 3 . . 7 Power 1 | . . 1 . . . . . . . . Propulsion 6 | . . 1 . . . 5 . . . . Utility 10 | . . . . . . 1 3 . . 6 Weapon 5 | . . . 1 . 1 2 . . . 1 Tool/Special . | . . . . . . . . . . . Average Slot Usage (%) 96 | . 99 98 100 100 98 99 92 97 100 78 Engine 8 | . 14 11 11 11 11 6 3 . . . Core 1 | . . . . . . 2 3 7 7 5 Treads 24 | . 27 32 33 33 33 35 4 . . . Flight 5 | . . . . . . . 21 30 30 20 Device 12 | . . 16 22 22 20 17 4 5 7 12 Storage 15 | . 27 16 11 11 11 17 6 7 7 5 Hackware 7 | . . . . . . . 32 30 30 25 Energy Gun 4 | . 2 2 . . . 15 5 . . . Energy Cannon 8 | . . 19 22 22 22 2 . . . . Ballistic Gun 4 | . 24 . . . . . . . . . Slashing Weapon 1 | . . . . . . . 5 7 7 5 Peak Build Rating 58 | 6 8 21 21 22 26 38 52 47 47 58 Average Rating 26 | 4 7 16 21 21 23 32 45 46 47 45 On Entrance 24 | . 6 8 21 21 22 23 35 42 47 47 Avg Prop Armor Cover (%) 6 | . . . . . . . 6 . . . Naked Turns . | . . . . . . . . . . . Heaviest Build 65 | 13 52 64 62 62 62 65 60 23 23 31 Greatest Support 89 | 40 40 69 69 69 69 89 80 24 24 29 Greatest Overweight (x) 9 | . 1 1 . . . 1 3 . . 9 Average Overweight (x) . | . . . . . . . . . . . Largest Inventory Capacity 20 | 8 20 20 20 20 20 20 20 10 10 10 Average Capacity 17 | 7 19 20 20 20 20 20 10 10 10 9 Most Carried 20 | 2 13 20 20 20 20 20 19 8 6 10 Average Carried 14 | 1 7 18 20 19 19 19 9 6 6 7 Final Capacity 20 | 8 20 20 20 20 20 20 10 10 10 5 Final Carried 20 | 2 13 20 20 20 20 19 8 6 6 5 Class Distribution -------------------- 69% | Mutant 11% | Hacker-Sprinter 9% | Hacker-Mutant 5% | Scavenger-Mutant 3% | Hacker-Skirmisher Dominant Class ---------------- Mutant | -10/Materials Mutant | -9/Materials Mutant | -9/Mines Mutant | -9/Exiles Mutant | -8/Mines Mutant | -8/Materials Hacker-Sprinter | -7/Factory Hacker-Sprinter | -7/Lower Caves Hacker-Sprinter | -7/Lower Caves Hacker-Mutant | -6/Factory Resources | -11 -10 -9 -9 -9 -8 -8 -7 -7 -7 -6 ----------- Run | Yrd Mat Mat Min Exi Min Mat Fac Low Low Fac Matter Collected 2108 | 260 263 472 21 . 81 465 295 118 . 133 Remotely . | . . . . . . . . . . . Salvage Created 6904 | . 596 1977 218 . 326 2212 713 . . 862 Parts 388 | . 39 121 13 . 11 114 55 . . 35 Haulers Intercepted 19 | . 2 6 . . . 4 5 . . 2 Recyclers Shooed 3 | . . 3 . . . . . . . . Parts Field Recycled . | . . . . . . . . . . . Retrieved Matter . | . . . . . . . . . . . Parts Self-Destructed . | . . . . . . . . . . . Prevented . | . . . . . . . . . . . Parts Restored . | . . . . . . . . . . . Kills | -11 -10 -9 -9 -9 -8 -8 -7 -7 -7 -6 ------- Run | Yrd Mat Mat Min Exi Min Mat Fac Low Low Fac Combat Hostiles Destroyed 119 | . 9 36 5 . 7 32 16 . . 14 Melee 9 | . . . . . . . 3 . . 6 Guns 40 | . 8 7 . . . 21 4 . . . Cannons 37 | . . 22 5 . 5 4 1 . . . AOE 23 | . 1 . . . 2 5 7 . . 8 Classes Destroyed 15 | . 7 3 . . 2 1 1 . . 1 Worker 6 | . 1 1 . . . 2 . . . 2 Builder 2 | . . . . . . 1 . . . 1 Tunneler 1 | . . . . . 1 . . . . . Hauler 19 | . 2 6 . . . 4 5 . . 2 Recycler 5 | . 1 2 . . . 1 . . . 1 Operator 8 | . 2 3 . . . 2 1 . . . Watcher 13 | . 3 3 . . . 5 . . . 2 Swarmer 26 | . 3 10 . . . 4 4 . . 5 Cutter 7 | . . . . . . . 7 . . . Grunt 53 | . 6 13 3 . 6 19 2 . . 4 Brawler 4 | . . 2 1 . . 1 . . . . Duelist 2 | . . 1 1 . . . . . . . Sentry 19 | . . 10 . . . 7 . . . 2 Hunter 5 | . . . . . 1 1 3 . . . Programmer 3 | . . . . . . . . . . 3 Best Kill Streak 7 | . 4 5 3 . 3 6 7 . . 7 Combat Bots Only 7 | . 3 4 3 . 3 4 7 . . 7 Max Kills in Single Turn 7 | . 2 2 1 . 2 3 6 . . 7 Gunslinging 1 | . . . . . . 1 . . . . Exploded 7 | . 1 . . . 2 2 6 . . 7 Melee 1 | . . . . . . . 1 . . 1 Uniques/NPCs Destroyed . | . . . . . . . . . . . Combat | -11 -10 -9 -9 -9 -8 -8 -7 -7 -7 -6 -------- Run | Yrd Mat Mat Min Exi Min Mat Fac Low Low Fac Hostile Shots Fired 716 | . 61 149 5 . 18 106 217 1 . 159 Missed 242 | . 22 42 . . 8 30 88 1 . 51 Hits 474 | . 39 107 5 . 10 76 129 . . 108 Melee 20 | . . 3 2 . . 1 10 . . 4 Projectile 454 | . 39 104 3 . 10 75 119 . . 104 AOE 2 | . . 1 . . . . 1 . . . Critical Strikes 18 | . . 3 . . . 3 9 . . 3 Damage Taken 7722 | . 445 1709 100 . 161 1620 1707 . . 1980 Core 1935 | . 138 176 31 . 45 207 485 . . 853 Absorbed by Shields . | . . . . . . . . . . . Redirected to Shielding 101 | . . . . . . . 101 . . . Regen/Repaired (Parts) 526 | . 161 50 . . . 258 37 . . 20 Core Remaining (%) 54 | 100 44 . . . 37 62 . . 30 . Volleys Fired 436 | . 97 119 7 . 36 123 47 . . 7 Largest 2 | . 2 2 2 . 2 2 2 . . 1 Hottest 136 | . 60 136 120 . 135 135 110 . . 43 Shots Fired 822 | . 192 240 16 . 72 222 72 . . 8 Gun 496 | . 191 72 . . . 172 57 . . 4 Cannon 320 | . . 168 16 . 72 50 13 . . 1 Launcher 6 | . 1 . . . . . 2 . . 3 Special . | . . . . . . . . . . . Kinetic 155 | . 150 . . . . . . . . 5 Thermal 322 | . . 172 16 . 72 50 12 . . . Explosive 1 | . 1 . . . . . . . . . Electromagnetic 344 | . 41 68 . . . 172 60 . . 3 Robot Hit Streak 20 | . 13 20 7 . 5 12 10 . . 2 Robot Miss Streak 7 | . 6 5 2 . 2 7 5 . . 5 Penetration Max . | . . . . . . . . . . . Secondary Targets 12 | . 3 2 . . . 6 1 . . . Max Gunslinging Chain 1 | . 1 1 . . . 1 1 . . . Shots Hit Robots 490 | . 101 144 9 . 19 137 46 . . 34 Core Hits 246 | . 37 52 6 . 12 85 26 . . 28 Critical Kills 4 | . 1 2 . . . . 1 . . . Critical Parts Destroyed . | . . . . . . . . . . . Critical Strikes 14 | . 2 5 . . . . 2 . . 5 Burn 2 | . . 2 . . . . . . . . Meltdown 3 | . . 2 . . . . 1 . . . Destroy 1 | . 1 . . . . . . . . . Corrupt 2 | . 1 1 . . . . . . . . Sever 6 | . . . . . . . 1 . . 5 Melee Attacks 168 | . . . . . . . 99 . . 69 Impact . | . . . . . . . . . . . Slashing 166 | . . . . . . . 99 . . 67 Piercing . | . . . . . . . . . . . Sneak Attacks 11 | . . . . . . . 5 . . 6 Combat Hostiles 1 | . . . . . . . 1 . . . Follow-up Attacks . | . . . . . . . . . . . Damage Inflicted 14330 | . 1074 2995 207 . 735 3849 2196 . . 3274 Guns 4798 | . 998 809 . . . 2554 437 . . . Cannons 3326 | . . 2157 207 . 412 359 191 . . . Explosions 4103 | . 59 21 . . 295 936 822 . . 1970 Melee 1972 | . . . . . . . 693 . . 1279 Ramming 131 | . 17 8 . . 28 . 53 . . 25 Kinetic 646 | . 646 . . . . . . . . . Thermal 6139 | . 59 1869 207 . 707 1295 237 . . 1765 Explosive 564 | . . . . . . . 564 . . . Electromagnetic 4878 | . 352 1118 . . . 2554 649 . . 205 Impact . | . . . . . . . . . . . Slashing 1972 | . . . . . . . 693 . . 1279 Piercing . | . . . . . . . . . . . Highest Corruption 9 | . . 2 2 2 2 . 9 9 9 5 Average Corruption 3 | . . 1 2 2 2 . 7 9 9 2 Corruption Purged . | . . . . . . . . . . . Corruption Blocked . | . . . . . . . . . . . Effects 113 | . . 16 12 6 15 . 51 4 . 9 Message Errors 26 | . . 1 2 3 3 . 14 1 . 2 Matter Fused 24 | . . 7 2 1 5 . 7 . . 2 Heat Flow Errors 21 | . . 1 2 1 2 . 13 2 . . Energy Discharges 13 | . . 2 1 1 1 . 5 . . 3 Parts Rejected 1 | . . . . . 1 . . . . . Data Loss (minor) 11 | . . 2 2 . 1 . 5 . . 1 Data Loss (major) 9 | . . . . . 2 . 6 1 . . Misfires 6 | . . 2 2 . . . 1 . . 1 Alerts 2 | . . 1 1 . . . . . . . Overload Shots . | . . . . . . . . . . . Overflow Damage 733 | . . . . . . 87 301 . . 345 Projectiles 18 | . . . . . . 18 . . . . Explosions 521 | . . . . . . 69 232 . . 220 Melee 194 | . . . . . . . 69 . . 125 Knockbacks . | . . . . . . . . . . . Impact . | . . . . . . . . . . . Kinetic . | . . . . . . . . . . . Secondary . | . . . . . . . . . . . Self-Inflicted Damage 740 | . 21 . . . . 431 203 . . 85 Shots 15 | . 1 . . . . 9 3 . . 2 Rammed 14 | . 4 1 . . 4 . . . . 5 Targets Rammed 14 | . 4 1 . . 4 . . . . 5 Kicked . | . . . . . . . . . . . Crushed . | . . . . . . . . . . . Highest Temperature 462 | . 135 462 222 127 333 227 321 269 . 15 Average Temperature 81 | . 50 83 65 64 117 54 92 143 . 3 Received Heat Transfer 1779 | . 174 384 18 . 81 594 288 . . 240 Effects 6 | . . . . . 2 . 3 1 . . Energy Bleed 3 | . . . . . 1 . 2 . . . Interference 2 | . . . . . . . 1 1 . . Damage (minor) 1 | . . . . . 1 . . . . . Siege Activations . | . . . . . . . . . . . Martial Activations . | . . . . . . . . . . . Shielding Activations . | . . . . . . . . . . . Robots Disrupted . | . . . . . . . . . . . Combat Hostiles . | . . . . . . . . . . . Robots Corrupted 7 | . . 5 . . . 2 . . . . Combat Hostiles 6 | . . 4 . . . 2 . . . . Parts Fried 30 | . 1 11 . . . 16 2 . . . Impact Corruptions . | . . . . . . . . . . . Robots Melted 4 | . . 3 . . . . 1 . . . Combat Hostiles 4 | . . 3 . . . . 1 . . . Parts Melted 15 | . . 8 . . 3 . 3 . . 1 Heat Transferred 8261 | . . 3935 333 . 979 1505 309 . . 1200 Parts Sabotaged . | . . . . . . . . . . . Parts Stolen . | . . . . . . . . . . . Parts Stripped . | . . . . . . . . . . . Power Chain Reactions 15 | . 1 1 . . . 12 1 . . . Alert | -11 -10 -9 -9 -9 -8 -8 -7 -7 -7 -6 ------- Run | Yrd Mat Mat Min Exi Min Mat Fac Low Low Fac Maximum Alert Level 2 | . . 1 . . . 2 1 . . 2 Low Security (%) 77 | 100 100 42 100 . 100 87 81 . . 62 Level 1 20 | . . 57 . . . 5 18 . . 31 Level 2 1 | . . . . . . 6 . . . 6 Level 3 . | . . . . . . . . . . . Level 4 . | . . . . . . . . . . . Level 5 . | . . . . . . . . . . . High Security . | . . . . . . . . . . . Max Security . | . . . . . . . . . . . Peak Influence 496 | . 124 398 144 . 134 496 374 . . 454 Initial 224 | . . . 124 . . 31 224 . . 116 Average 112 | . 15 219 36 . 24 112 122 . . 138 Influence Increases 5307 | . 329 1137 157 . 265 1287 1091 45 . 996 Destroy 0b10 Robot/C 2380 | . 180 720 100 . 140 640 320 . . 280 Destroy 0b10 Robot/NC 270 | . 45 75 . . 5 75 30 . . 40 Destroy Leader 642 | . 50 218 20 . 30 168 78 . . 78 Allied During Kill 21 | . . . 21 . . . . . . . Successful Hack 119 | . 10 21 . . . 23 24 . . 41 Disable Machine 630 | . 15 30 15 . 60 135 120 . . 255 Anti-Garrison Action 150 | . . . . . . 150 . . . . Destroy Structure 360 | . 14 13 1 . 30 81 144 . . 77 Partial Spotted 60 | . . . . . . . 45 . . 15 Lose Combat Pursuer 675 | . 15 60 . . . 15 330 45 . 210 Influence Decreases 4882 | . 329 816 402 76 183 874 1214 188 44 756 Entered New Map 846 | . . . 197 76 . 51 271 138 44 69 Time Decay 3037 | . 319 636 205 . 173 562 603 50 . 489 Lost Part 458 | . 10 30 . . 10 70 160 . . 178 Lost Ally 30 | . . . . . . . 10 . . 20 Purge Threat 511 | . . 150 . . . 191 170 . . . Squads Dispatched 37 | . 1 5 . . 1 7 17 . . 6 Investigation 8 | . . 3 . . . 2 2 . . 1 Extermination 8 | . . . . . . . 5 . . 3 Reinforcement 16 | . 1 2 . . 1 3 7 . . 2 Assault 2 | . . . . . . 2 . . . . Garrison 3 | . . . . . . . 3 . . . Intercept . | . . . . . . . . . . . Searches Triggered . | . . . . . . . . . . . Construction Impeded 4 | . . 1 . . 1 1 . . . 1 Haulers Reinforced 1 | . . . . . . . . . . 1 Active Scanning Responses . | . . . . . . . . . . . Cargo Convoy Interrupts 1 | . . . . . . . 1 . . . Stealth | -11 -10 -9 -9 -9 -8 -8 -7 -7 -7 -6 --------- Run | Yrd Mat Mat Min Exi Min Mat Fac Low Low Fac Distress Signals 10 | . 1 4 . . . 2 2 . . 1 Communications Jammed . | . . . . . . . . . . . Distress Signals . | . . . . . . . . . . . Times Spotted 231 | . 31 50 4 . 5 48 41 3 . 49 Peak Tracking Total 8 | . 3 4 2 . 3 5 8 3 . 6 Tactical Retreats 32 | . 1 3 . . . 1 14 1 . 12 ECM-based Alert Blocks 23 | . . . . . . . . . . 23 Traps | -11 -10 -9 -9 -9 -8 -8 -7 -7 -7 -6 ------- Run | Yrd Mat Mat Min Exi Min Mat Fac Low Low Fac Traps Triggered 12 | . . 3 . . . 4 3 . . 2 Indirectly 1 | . . . . . . . . . . 1 Trap Hack Attempts . | . . . . . . . . . . . Triggered . | . . . . . . . . . . . Disarmed . | . . . . . . . . . . . Reprogrammed . | . . . . . . . . . . . Reused . | . . . . . . . . . . . Traps Extracted . | . . . . . . . . . . . Installed . | . . . . . . . . . . . Triggered . | . . . . . . . . . . . Machines | -11 -10 -9 -9 -9 -8 -8 -7 -7 -7 -6 ---------- Run | Yrd Mat Mat Min Exi Min Mat Fac Low Low Fac Machines Disabled 43 | . 1 2 1 . 4 10 8 . . 17 Max in Single Turn 10 | . 1 1 1 . 4 2 5 . . 10 Garrison Access 7 | . . . . . . 1 2 . . 4 Machines Repaired . | . . . . . . . . . . . Machines Dismantled . | . . . . . . . . . . . Machines Sabotaged . | . . . . . . . . . . . Overloaded Fab Kills . | . . . . . . . . . . . Hacking | -11 -10 -9 -9 -9 -8 -8 -7 -7 -7 -6 --------- Run | Yrd Mat Mat Min Exi Min Mat Fac Low Low Fac Machines Accessed 61 | . 8 11 . 3 . 10 16 . . 13 Terminals 38 | . 7 9 . . . 7 8 . . 7 Fabricators 2 | . . . . . . . 1 . . 1 Repair Stations 6 | . 1 1 . . . 1 2 . . 1 Recycling Units 2 | . . . . . . . 2 . . . Scanalyzers 4 | . . 1 . . . 2 1 . . . Garrison Access 6 | . . . . . . . 2 . . 4 Total Hacks 191 | . 26 31 . 12 . 32 52 . . 38 Successful 125 | . 17 20 . 12 . 23 39 . . 14 Failed 65 | . 9 11 . . . 8 13 . . 24 Catastrophic 11 | . . 4 . . . 3 1 . . 3 Database Lockouts 1 | . . . . . . 1 . . . . Manual 69 | . 14 16 . 1 . 8 16 . . 14 Terminals 119 | . 21 24 . . . 19 28 . . 27 Fabricators 3 | . . . . . . . 2 . . 1 Repair Stations 27 | . 5 4 . . . 7 7 . . 4 Recycling Units 7 | . . . . . . . 7 . . . Scanalyzers 13 | . . 3 . . . 6 4 . . . Garrison Access 10 | . . . . . . . 4 . . 6 Terminal Hacks 54 | . 6 8 . 12 . 7 16 . . 5 Record 13 | . . . . 11 . 1 . . . 1 Part Schematic 1 | . . . . . . . . . . 1 Robot Analysis 2 | . . 1 . . . . 1 . . . Prototype ID Bank 3 | . . 1 . . . . 1 . . 1 Open DSF 1 | . . . . . . . 1 . . . Branch Access Points 2 | . . 1 . . . . 1 . . . Emergency Access Points 2 | . . . . . . . 2 . . . Terminal Index 1 | . 1 . . . . . . . . . Unreport Threat 5 | . . 1 . . . 2 2 . . . Locate Traps 6 | . 2 . . . . 2 2 . . . Recall Extermination 2 | . . . . . . . 1 . . 1 Hauler Manifests 4 | . 1 2 . . . 1 . . . . Registered Components 2 | . . . . . . . 1 . . 1 Registered Prototypes 1 | . 1 . . . . . . . . . Zone Layout 8 | . 1 2 . . . 1 4 . . . Proto ID Catalog 1 | . . . . 1 . . . . . . Fabricator Hacks 2 | . . . . . . . 2 . . . Load Schematic 1 | . . . . . . . 1 . . . Build 1 | . . . . . . . 1 . . . Repair Station Hacks 22 | . 4 4 . . . 6 6 . . 2 Scan Component 11 | . 2 2 . . . 3 3 . . 1 Repair 11 | . 2 2 . . . 3 3 . . 1 Recycling Unit Hacks 2 | . . . . . . . 2 . . . Report Inventory 2 | . . . . . . . 2 . . . Scanalyzer 12 | . . 3 . . . 5 4 . . . Insert Component 4 | . . 1 . . . 2 1 . . . Analyze 4 | . . 1 . . . 2 1 . . . Retrieve Study 4 | . . 1 . . . 1 2 . . . Garrison Access Hacks 6 | . . . . . . . 2 . . 4 Seal Access 6 | . . . . . . . 2 . . 4 Unauthorized Hacks 26 | . 7 4 . . . 5 7 . . 3 Terminals 24 | . 7 4 . . . 5 5 . . 3 Assimilate 4 | . 1 . . . . 1 2 . . . Botnet 19 | . 5 4 . . . 4 3 . . 3 Operators 1 | . 1 . . . . . . . . . Fabricators . | . . . . . . . . . . . Repair Stations . | . . . . . . . . . . . Recycling Units 2 | . . . . . . . 2 . . . Reject 2 | . . . . . . . 2 . . . Scanalyzers . | . . . . . . . . . . . Garrison Access . | . . . . . . . . . . . Data Cores Recovered 2 | . . 1 . . . . 1 . . . Used . | . . . . . . . . . . . Hacking Detections 39 | . 6 9 . . . 7 10 . . 7 Full Trace Events 11 | . 3 3 . . . 2 2 . . 1 Feedback Events . | . . . . . . . . . . . Feedback Blocked . | . . . . . . . . . . . Robot Schematics Acquired . | . . . . . . . . . . . Robots Built . | . . . . . . . . . . . Authchips . | . . . . . . . . . . . Time . | . . . . . . . . . . . Total Robot Build Rating . | . . . . . . . . . . . Part Schematics Acquired 5 | . . 1 . . . 2 1 . . 1 Parts Built 1 | . . . . . . . 1 . . . Authchips . | . . . . . . . . . . . Time 134 | . . . . . . . 134 . . . Total Part Build Rating 4 | . . . . . . . 4 . . . Part Studies Acquired 4 | . . 1 . . . 1 2 . . . Parts Repaired 11 | . 2 2 . . . 3 3 . . 1 Time 487 | . 52 64 . . . 152 184 . . 35 Parts Recycled . | . . . . . . . . . . . Recycled Matter . | . . . . . . . . . . . Retrieved Matter . | . . . . . . . . . . . Retrieved Components . | . . . . . . . . . . . Parts Scanalyzed 4 | . . 1 . . . 2 1 . . . Part Schematics Acquired 4 | . . 1 . . . 2 1 . . . Parts Damaged 1 | . . . . . . 1 . . . . Bothacking | -11 -10 -9 -9 -9 -8 -8 -7 -7 -7 -6 ------------ Run | Yrd Mat Mat Min Exi Min Mat Fac Low Low Fac Used RIF Installer . | . . . . . . . . . . . Robots Hacked . | . . . . . . . . . . . Non-combat . | . . . . . . . . . . . Combat . | . . . . . . . . . . . Robot Hacks Applied . | . . . . . . . . . . . Relay Couplers Released 7 | . . . . . . 2 . . . 5 Machine Destruction 4 | . . . . . . 2 . . . 2 Programmers 3 | . . . . . . . . . . 3 Fabnet Peak Effective % . | . . . . . . . . . . . Robots Rewired 1 | . . . . . . . . . . 1 Allies Hacked . | . . . . . . . . . . . Hacks Repelled . | . . . . . . . . . . . Allies | -11 -10 -9 -9 -9 -8 -8 -7 -7 -7 -6 -------- Run | Yrd Mat Mat Min Exi Min Mat Fac Low Low Fac Total Allies 8 | . . . 6 . . . 1 . . 1 Largest Group 6 | . . . 6 5 3 . 1 . . 1 Highest-Rated Group 116 | . . . 116 85 40 . 10 . . 12 Highest-Rated Ally 31 | . . . 31 31 16 . 10 . . 12 Total Orders . | . . . . . . . . . . . Ally Attacks 14 | . . . . . 10 . . . . 4 Total Damage 175 | . . . . . 130 . . . . 45 Kills . | . . . . . . . . . . . Allies Corrupted . | . . . . . . . . . . . Allies Melted . | . . . . . . . . . . . Intel | -11 -10 -9 -9 -9 -8 -8 -7 -7 -7 -6 ------- Run | Yrd Mat Mat Min Exi Min Mat Fac Low Low Fac Active Infowar (turns) 3876 | . . 1146 . . 84 790 508 1 . 1347 Sensors 1146 | . . 1146 . . . . . . . . Terrain 636 | . . . . . 84 . 502 . . 50 Structural 790 | . . . . . . 790 . . . . Traps 1309 | . . . . . . . . . . 1309 Cloaking 4 | . . . . . . . . . . 4 ECM 159 | . . . . . . . 6 1 . 152 Robot Analysis Total 2 | . . 1 . . . . 1 . . . Derelict Logs Recovered 4 | . . . 1 . . . . 2 1 . Drone Launches . | . . . . . . . . . . . Drone Recoveries . | . . . . . . . . . . . Exploration | -11 -10 -9 -9 -9 -8 -8 -7 -7 -7 -6 ------------- Run | Yrd Mat Mat Min Exi Min Mat Fac Low Low Fac Turns Passed 15631 | 63 2509 3510 1009 413 1206 2992 2264 104 9 1552 Spaces Moved 10555 | 36 901 1698 589 257 553 1258 2971 378 34 1880 Core 157 | 4 . . . . . . . . . 153 Treads 5424 | 32 901 1698 589 257 553 1258 136 . . . Legs . | . . . . . . . . . . . Wheels . | . . . . . . . . . . . Hover . | . . . . . . . . . . . Flight 4974 | . . . . . . . 2835 378 34 1727 Fastest Speed 24 | 50 160 160 160 160 160 160 26 27 27 24 Average Speed 109 | 147 236 162 160 160 160 160 38 27 27 58 Slowest Speed 500 | 160 240 240 160 160 160 240 330 27 27 500 Overloaded Moves . | . . . . . . . . . . . Propulsion Burnouts . | . . . . . . . . . . . Robots Hopped 10 | . . . . . . . 3 . . 7 Potential Cave-ins 5 | . . . . . 3 . . . . 2 Cave-ins Triggered . | . . . . . . . . . . . Exploration Rate (%) 60 | 3 95 95 99 62 59 83 62 61 5 41 Regions Visited 10 Branch Regions 5 Pre-discovered Areas 2 | . . . . 1 . . . 1 . . Known Exits Taken 2 | . . 1 . . . . 1 . . . Unknown Exits Taken 8 | 1 1 . 1 1 1 1 . 1 1 . Scrap Searched 8 | . . . 1 . 1 . . 6 . . Spaces Dug 126 | . . 1 . . 3 7 84 . . 31 Terrain Destroyed 408 | . 14 6 1 . 63 86 150 . . 88 Melee 115 | . . . . . . . 84 . . 31 Projectile 66 | . . 2 1 . 43 19 . . . 1 AOE 226 | . 14 4 . . 20 67 65 . . 56 Terrain Rammed 2 | . . . . . . . 1 . . 1 Walls Destroyed 1 | . . . . . . . 1 . . . Machines Disabled . | . . . . . . . . . . . Actions | -11 -10 -9 -9 -9 -8 -8 -7 -7 -7 -6 --------- Run | Yrd Mat Mat Min Exi Min Mat Fac Low Low Fac Total 13567 | 43 1106 2210 644 260 801 2011 3873 379 33 2207 Wait 2093 | . 87 304 45 . 199 544 702 . . 212 Move 10528 | 35 900 1697 588 256 552 1257 2964 377 33 1869 Hop 7 | . . . . . . . 3 . . 4 Pick Up 67 | 2 6 18 1 1 2 20 9 . . 8 Fast Attach 49 | 6 3 6 . . 1 12 13 . . 8 Attach 49 | . 1 9 . . . 10 19 2 . 8 Detach 11 | . . 5 . . . . 2 . . 4 Swap 80 | . 8 28 1 1 3 27 6 . . 6 Drop 63 | . . 23 2 2 4 18 8 . . 6 Fire 436 | . 97 119 7 . 36 123 47 . . 7 Melee 168 | . . . . . . . 99 . . 69 Ram 7 | . . . . . . . 1 . . 6 Kick . | . . . . . . . . . . . Crush 9 | . 4 1 . . 4 . . . . . Escape Stasis . | . . . . . . . . . . . Rewire . | . . . . . . . . . . . Trap . | . . . . . . . . . . . Miscellaneous . | . . . . . . . . . . . Route ------- -11/Scrapyard -10/Materials (discovered 5 exits: *Mat x3 / [*Min] / [*Sub]) -9/Materials (discovered 4 exits: *Mat x3 / *Min) -9/Mines (discovered 3 exits: *Mat x2 / *Exi) -9/Exiles -8/Mines -8/Materials (discovered 4 exits: *Fac x2 / [*Sto x2]) -7/Factory (discovered 3 exits: *Fac / *Low x2) -7/Lower Caves -7/Lower Caves -6/Factory (discovered 2 exits: [*Fac x2]) History --------- Turn | Location | Event 7 | -11/Scrapyard | Discovered new exit (range 16) 64 | -11/Scrapyard | Entered Materials 300 | -10/Materials | Build established: Mutant 343 | -10/Materials | Discovered new exit (range 8) 599 | -10/Materials | Discovered new exit (range 17) 685 | -10/Materials | Discovered new exit (range 7) 865 | -10/Materials | Core integrity fell below 50% 1392 | -10/Materials | Repaired Lgt. Treads 1419 | -10/Materials | Repaired Lgt. Treads 1786 | -10/Materials | Discovered new exit (range 16) 2127 | -10/Materials | Discovered new exit (range 11) 2573 | -10/Materials | Entered another Materials area 2573 | -9/Materials | Evolved 2 slots: Propulsion x1, Utility x1 3221 | -9/Materials | Discovered new exit (range 7) 3247 | -9/Materials | Build established: Scavenger-Mutant 3612 | -9/Materials | Build established: Mutant 3621 | -9/Materials | Discovered new exit (range 14) 3817 | -9/Materials | Discovered new exit (range 13) 4470 | -9/Materials | Repaired Lgt. EM Pulse Cannon+ 4503 | -9/Materials | Repaired Lgt. EM Pulse Cannon+ 4928 | -9/Materials | Identified exit to Mines 5931 | -9/Materials | Discovered new exit (range 4) 6083 | -9/Materials | Entered Mines 6147 | -9/Mines | Core integrity fell below 50% 6302 | -9/Mines | Discovered new exit (range 8) 6430 | -9/Mines | Received a Mining Laser from a helpful Derelict 6430 | -9/Mines | Discovered new exit (range 6) 6495 | -9/Mines | Received a Rocket Launcher from a helpful Derelict 6514 | -9/Mines | A weapon hastily lodged in a ceiling crevice suddenly fell to the ground 6552 | -9/Mines | Assisted by bots powering up and referring to "LRC-V3" 7045 | -9/Mines | Deemed a non-threat by the Exiles lab entrance 7045 | -9/Mines | Discovered new exit (range 5) 7092 | -9/Mines | Entered Exiles 7092 | -9/Exiles | Accompanied by 5 allies 7122 | -9/Exiles | Led the pair of lost Derelicts to a safe place 7134 | -9/Exiles | Met 8R-AWN 7158 | -9/Exiles | Met EX-HEX 7212 | -9/Exiles | Met EX-BIN 7230 | -9/Exiles | Aligned with FarCom system 7232 | -9/Exiles | Given EX-Vault access code 7272 | -9/Exiles | Opened EX-Vault 7295 | -9/Exiles | Found Superbattery 7331 | -9/Exiles | Warned to stay clear of 0b10 Research branches 7388 | -9/Exiles | Met EX-DEC 7404 | -9/Exiles | Learned location of Zion (-6) 7486 | -9/Exiles | Discovered new exit (range 11) 7505 | -9/Exiles | Left Exiles lab with Superbattery 7505 | -9/Exiles | Entered Mines 7505 | -8/Mines | Accompanied by 3 allies 7632 | -8/Mines | Lost 3 allies 8700 | -8/Mines | Discovered new exit (range 7) 8711 | -8/Mines | Entered Materials 8711 | -8/Materials | Evolved 2 slots: Propulsion x1, Utility x1 8908 | -8/Materials | Central database locked down 9337 | -8/Materials | Discovered new exit (range 14) 9539 | -8/Materials | Lost 4 parts (2n2u) 9566 | -8/Materials | Discovered new exit (range 5) 9886 | -8/Materials | Repaired Hvy. EM Shotgun 9948 | -8/Materials | Repaired Hvy. EM Shotgun 9981 | -8/Materials | Repaired Imp. Treads 10028 | -8/Materials | Discovered new exit (range 3) 10990 | -8/Materials | Discovered new exit (range 14) 11703 | -8/Materials | Entered Factory 11703 | -7/Factory | Evolved 2 slots: Utility x2 11966 | -7/Factory | Garrison activated, responded to threat 12002 | -7/Factory | Build established: Hacker-Skirmisher 12028 | -7/Factory | Lost 5 parts (1p3n1u) 12260 | -7/Factory | Lost 6 parts (1p2u3w) 12301 | -7/Factory | Repaired Broken Imp. Cesium-ion Thruster? 12723 | -7/Factory | Build established: Hacker-Mutant 12749 | -7/Factory | Cargo convoy interrupted 12794 | -7/Factory | Fabricated Imp. Cesium-ion Thruster? 12871 | -7/Factory | Discovered new exit (range 12) 13106 | -7/Factory | Watched by a mysterious "MATRIX" hacker 13130 | -7/Factory | Build established: Hacker-Sprinter 13556 | -7/Factory | Identified exit to Lower Caves 13722 | -7/Factory | Repaired Imp. Cesium-ion Thruster 13793 | -7/Factory | Repaired Imp. Cesium-ion Thruster 13919 | -7/Factory | Core integrity fell below 50% 13958 | -7/Factory | Destroyed 7 combat bots 13965 | -7/Factory | Lost 3 parts (1p1u1w) 13967 | -7/Factory | Entered Lower Caves 13996 | -7/Lower Caves | Encountered a Warlord checkpoint 14023 | -7/Lower Caves | Spotted B-75 Beast 14056 | -7/Lower Caves | Learned Factory emergency access door positions 14067 | -7/Lower Caves | Discovered new exit (range 15) 14071 | -7/Lower Caves | Entered another Lower Caves area 14072 | -7/Lower Caves | Learned Factory emergency access door positions 14073 | -7/Lower Caves | Discovered new exit (range 7) 14080 | -7/Lower Caves | Entered Factory 14080 | -6/Factory | Evolved 2 slots: Propulsion x1, Utility x1 14150 | -6/Factory | Repaired Imp. Cesium-ion Thruster? 14544 | -6/Factory | Discovered new exit (range 5) 14861 | -6/Factory | Build established: Hacker-Mutant 15446 | -6/Factory | Discovered new exit (range 6) 15490 | -6/Factory | Lost 4 parts (2n1u1w) 15524 | -6/Factory | Core integrity fell below 50% 15527 | -6/Factory | Destroyed 7 combat bots 15576 | -6/Factory | Core integrity fell below 20% 15621 | -6/Factory | Lost 9 parts (1p1n6u1w) 15632 | -6/Factory | Destroyed by P-60 Hacker with Shock Rifle Last Messages --------------- 15546_ System corrupted by crushing effect (+1). 15546_ Destabilizing: Core damaged (-25). 15546_ Destabilizing: System interference. 15546_ Adv. Terrain Scanner temporarily disabled. 15555_ K-01 Serf collects debris. 15570_ Triggered Heavy Explosive Trap. 15570_ An explosion rips through the floor. 15570_ Cloaking Device destroyed. 15570_ Manufacturing Mainframe disabled. 15572_ Hacking Suite destroyed. 15573_ Adv. Terrain Scanner destroyed. 15573_ Slammed into G-50 Soldier. 15575_ Destabilizing: Core damaged (-34). 15576_ Slammed into G-50 Soldier. 15583_ Acquired Unknown Ballistic Cannon. 15583_ Identified Gauss Cannon. 15584_ System corrupted: Energy discharge (-29). 15590_ System Shield destroyed. 15594_ Dropped Gauss Cannon. 15601_ K-01 Serf cleans the Neutrino Reactor. Map ----- +----------------------------------------------------+ | ?????????????????????????????## """"T"""" + | | ??????????????????????????????#! # | | ????!?????????????????????????# # | | ?????????????????????????????## """"""" """"""" # | | ?????????????????????????????#"* """"""" """"""" # | | ?????????????????????????????## """"""" """"""" # | | ??????????????????????????????# """"""" """"""" # | | ??????????????????????????????#"#################" | | ??????????????????????????????###??????????####### | | ???????????????????????????????????????????# | | ???????????????????????????????????????????# | | ???????????????????????????????????????????# | | ???????????????????????????????????????????# | | ???????????????????????????????????????????# | | ???????????##########??????????##########??# "" | | ???????????# #??????????# #??# "" | | ???????????# #?????????## #??# "" | | ???????????# #?????????#" #??# | | ???????????# #?????????#" #??# | | ???????????# < #?????????## #?## | | #??????????# #??????????# #?#" | | ??#????????# #??????????# [#?#""##### | | ???????????# #??????????# #?##### | | ?????###+### #???###???## ####### "" | | ##???# ##+########################+## # "" | | ##### k @ g # "" | | # ! k t p " / | | # ###=%! ] # "" | | # #?#* ! #######+###################g## # "" | | / #?#######??# #??# ####### "" | | # #??????????# """"""""" #??# """ g #?????# | | # #?#????????#! #### "F" ]g ##????#### | | + ############ """"""""" / + " / #???????? | | # ## """T""" #] #### """ ##???????? | | # ## ##############??# """ ! #????????? | | # + =#?#???# #??# #????????? | | # # """" #?????# """" ##?# #????????? | | ## # """ #?????# #?###/#"###+#????????? | | # """ #?????# " #???# ##?????????????? | | + """ #?????# " #???# #??????????????? | | # ! #?????# #???# #??????????????? | | ################## ##### ### T ????? | | l "" ] ?????? | | ###################### ## ######### ???? | | ?????????#???????????###?####????????????????????? | | ??#??????????????#???#???????????????????????????? | | ?????????????????????????????????????????????????? | | ????????#????????????????????????????????????????? | | | | | +----------------------------------------------------+ Best States ------------- Heat Dissipation 53 Energy Generation 16 Energy Capacity 480 Matter Stores 300 Matter Capacity 300 Sight Range 16 Robot Scan Range 14 Terrain Scan Range 20 Terrain Scan Density 10 ECM Strength 2 Propulsion Shielding 66 Evasion (%) 65 Recoil Reduction 4 Particle Charging 15 Offensive Hacking 30 Defensive Hacking 20 Item Schematics ----------------- Hacking Suite | -9/Materials | Scanalyzed System Shield | -8/Materials | Scanalyzed Imp. Cesium-ion Thruster | -8/Materials | Scanalyzed Mic. Nuclear Core | -7/Factory | Scanalyzed Adv. Transmission Jammer | -6/Factory | Hacked Robot Schematics ------------------ None Fabricated ------------ Imp. Cesium-ion Thruster | x1 | -7/Factory Repaired ---------- Lgt. Treads | 27% | -10/Materials Lgt. Treads | 57% | -10/Materials Lgt. EM Pulse Cannon | 60% | -9/Materials Lgt. EM Pulse Cannon | 68% | -9/Materials Hvy. EM Shotgun | 17% | -8/Materials Hvy. EM Shotgun | 18% | -8/Materials Imp. Treads | 18% | -8/Materials Imp. Cesium-ion Thruster | 93% | -7/Factory | Broken Imp. Cesium-ion Thruster | 65% | -7/Factory Imp. Cesium-ion Thruster | 80% | -7/Factory Imp. Cesium-ion Thruster | 66% | -6/Factory Studied --------- Lgt. EM Pulse Cannon | -9/Materials | Hacked Ion Cannon | -8/Materials | Hacked Mic. Nuclear Core | -7/Factory | Hacked Chainsword | -7/Factory | Hacked Alien Tech Used ----------------- None Achievements -------------- None Challenges ------------ None Game ------ Seed LinearTrackerSubcomponent Manual? 0 Play Time 02:21:56 Cumulative 96.8 hours Start 2026.09.19 @ 19:44:06 End 2026.09.19 @ 22:38:27 Sessions 1 Manual Loads 0 Difficulty Rogue Special Mode None Game No. 151 Rogue 151 Adventurer 0 Explorer 0 Win Type - Total 0 Types 0/0/0/0/0/0/0/0/0/0 Lore% 23 Gallery% 34 Achievement% 30 Wizard Run 0 Options --------- Layout 0 ASCII 0 Keyboard 0 Movement Mouse Keybinds 0 Fullscreen 1 Font 24/Smallcaps Map View 38x25 Zoom Use 94% Tactical HUD 1 Map Filters NONE Filters NONE Steam 1 RUN: 69042209-8d56-4659-9236-28b785b6265b